{"text_format":"1","workbook":"xlsx","n_sheets":4,"sheets":["قاعدة البيانات","الدفتر اليومي","جدول الخدمة الاسبوعـــي","رزنامة"],"not_rendered":{"charts":0,"images":4,"macros":1,"external_links":0,"defined_names":1,"comments":0,"pivot_tables":0},"unopened":[],"bounds":{"document_bytes":16777216,"sheet_cells":100000,"rows_first":2000,"rows_last":500,"rows_between":2000,"halvings":0,"cell_chars":16384,"cell_head_chars":4096},"cells_cut":0,"cells_raw":0,"read":"whole","date_system":"1900"}

{"sheet":"قاعدة البيانات","index":0,"n_rows":46,"n_cols":104,"rows_kept":46,"cut":false,"hidden":false,"merged":[[3,1,3,8],[3,9,3,12],[3,13,3,48],[3,49,3,66],[0,90,0,92]]}
[null,null,"عودة للصفحة الرئيسية",null,null,null,"عودة للصفحة الرئيسية",null,null,null,null,null,null,null,null,null,null,null,null,null,null,null,null,null,null,null,null,null,"عودة للصفحة الرئيسية",null,null,null,null,null,null,null,null,null,null,null,null,"عودة للصفحة الرئيسية",null,null,null,null,null,null,null,null,"عودة للصفحة الرئيسية",null,null,null,null,null,null,null,null,"عودة للصفحة الرئيسية",null,null,null,null,null,null,null,null,null,null,null,null,null,null,"عودة للصفحة الرئيسية",null,null,null,null,null,null,null,"عودة للصفحة الرئيسية",null,null,null,null,null,null,null,"عودة للصفحة الرئيسية"]
[]
["رقم الاسبوع","تربية اسلامية","الكفاءة المستهدفة",null,"رقم الحصة","تربية اسلامية","الكفاءة المستهدفة",null,"رقم الحصة ","تربية مدنية","الكفاءة المستهدفة ",null,"رقم الحصة ","القراءة الحصة 1","الكفاءة المستهدفة ",null,"رقم الحصة ","التعبير الشفوي","الكفاءة المستهدفة ","رقم الحصة ","القراءة الحصة الثانية","الكفاءة المستهدفة ","رقم الحصة ","القواعد النحوية","الكفاءة المستهدفة ",null,"رقم الحصة ","القراءة الحصة الثالثة","الكفاءة المستهدفة ",null,"رقم الحصة ","الاملاء / الصرف","الكفاءة المستهدفة ","رقم الحصة ","المطالعة","الكفاءة المستهدفة ","رقم الحصة ","المحفوظات","الكفاءة المستهدفة ","رقم الحصة ","التعبير الكتابي","الكفاءة المستهدفة ","رقم الحصة ","ت - ت - ك / إ مشروع","الكفاءة المستهدفة ","رقم الحصة ","نشاطات إدماجية","الكفاءة المستهدفة ","رقم الحصة ","الرياضيات الحصة 1","الكفاءة المستهدفة ","رقم الحصة ","الرياضيات الحصة 2","الكفاءة المستهدفة ","رقم الحصة ","الرياضيات الحصة 3","الكفاءة المستهدفة ","رقم الحصة ","الرياضيات الحصة 4","الكفاءة المستهدفة ","رقم الحصة ","الرياضيات الحصة 5","الكفاءة المستهدفة ","رقم الحصة ","الرياضيات الحصة 6","الكفاءة المستهدفة ","رقم الحصة ","ت - علمية الحصة 1","الكفاءة المستهدفة ","رقم الحصة ","ت - علمية الحصة 2","الكفاءة المستهدفة ","رقم الحصة ","التاريخ ","الكفاءة المستهدفة ","رقم الحصة ","الجغرافيا","الكفاءة المستهدفة ","رقم الحصة ","التربية فنية","الكفاءة المستهدفة ","رقم الحصة ","التربية فنية","الكفاءة المستهدفة ","رقم الحصة"]
["الاسابيع","تربية اسلامية",null,null,null,null,null,null,null,"ت - مدنية",null,null,null,"اللغة العربيـــــــــــــــــــــــــــــــــــــــــــــــــــــــــــــــــــــــــــــــــــــــــــــــــة",null,null,null,null,null,null,null,null,null,null,null,null,null,null,null,null,null,null,null,null,null,null,null,null,null,null,null,null,null,null,null,null,null,null,null,"الرياضيات"]
[null,"ت -إسلامية ح 1","الكفاءة المستهدفة 1","الكفاءة القاعدية 1","رقم الحصة 1","ت - إسلامية ح 2","الكفاءة المستهدفة 2","الكفاءة القاعدية 2","رقم الحصة 2","ت - مدنية","الكفاءة المستهدفة 3","الكفاءة القاعدية 3","رقم الحصة 3","قراءة ( أداء + فهم + هيكلة )","الكفاءة المستهدفة 4","الكفاءة القاعدية 4","رقم الحصة 4","ت - شفوي","الكفاءة المستهدفة 5","رقم الحصة 5","قراءة ( أداء + فهم )","الكفاءة المستهدفة 6","رقم الحصة 6","ظواهر نحوية","الكفاءة المستهدفة 7","الكفاءة القاعدية 7","رقم الحصة 7","قراءة ( أداء  )","الكفاءة المستهدفة 8","الكفاءة القاعدية 8","رقم الحصة 8","الصرف / الاملاء","الكفاءة المستهدفة 9","رقم الحصة 9","مطالعة","الكفاءة المستهدفة 10","رقم الحصة 10","محفوظات","الكفاءة المستهدفة 11","رقم الحصة 11","ت - كتابي","الكفاءة المستهدفة 12","رقم الحصة 12","ت - ت - ك / إ مشروع","الكفاءة المستهدفة 13","رقم الحصة 13","نشاطات إدماجية","الكفاءة المستهدفة 14","رقم الحصة 14","رياضيات","الكفاءة المستهدفة 15","رقم الحصة 15","رياضيات 2","الكفاءة المستهدفة 16","رقم الحصة 16","رياضيات 3","الكفاءة المستهدفة 17","رقم الحصة 17","رياضيات 4","الكفاءة المستهدفة 18","رقم الحصة 18","رياضيات 5","الكفاءة المستهدفة 19","رقم الحصة 19","رياضيات 6","الكفاءة المستهدفة 20","رقم الحصة 20","ت - علمية و تكنولوجية 1","الكفاءة المستهدفة 21","رقم الحصة 21","ت - علمية و تكنولوجية 2","الكفاءة المستهدفة 22","رقم الحصة 22","تاريخ","الكفاءة المستهدفة 23","رقم الحصة 23","جغرافيــــــــا","الكفاءة المستهدفة 24","رقم الحصة 24","ت - تشكيلية / موسيقية","الكفاءة المستهدفة 25","رقم الحصة 25","ت - بدنية","الكفاءة المستهدفة 26","الكفاءة القاعدية 26","رقم الحصة 26","معالجة / رياضيات","الكفاءة المستهدفة 27","رقم الحصة 27","معالجة / لغة عربية","الكفاءة المستهدفة 28","رقم الحصة 28","إتمام النصاب","الكفاءة المستهدفة 29","رقم الحصة 29","نشاطات لا صفية","الكفاءة المستهدفة 30","رقم الحصة 30","الدّعـــــــــــــــــم","الكفاءة المستهدفة 31","رقم الحصة 31","الفريق التربوي","الكفاءة المستهدفة 32","رقم الحصة 32"]
[1,null,null,null,null,null,null,null,null,null,null,null,null,null,null,null,null,null,null,null,null,null,null,null,null,null,null,null,null,null,null,null,null,null,null,null,null,null,null,null,null,null,null,null,null,null,null,null,1,null,null,null,null,null,null,null,null,null,null,null,null,null,null,null,null,null,null,null,null,null,null,null,null,null,null,null,null,null,null,null,null,null,null,null,null,1]
[2]
[3]
[4]
[5]
[6]
[7]
[8]
[9]
[10]
[11]
[12]
[13]
[14]
[15]
[16,null,null,null,null,null,null,null,null,null,null,null,null,null,null,null,null,null,null,null,null,null,null,null,null,null,null,null,null,null,null,null,null,1]
[17,null,null,null,null,null,null,null,null,null,null,null,null,null,null,null,null,null,null,null,null,null,null,null,null,null,null,null,null,null,null,null,null,1]
[18,null,null,null,null,null,null,null,null,null,null,null,null,null,null,null,null,null,null,null,null,null,null,null,null,null,null,null,null,null,null,null,null,1]
[19,null,null,null,null,null,null,null,null,null,null,null,null,null,null,null,null,null,null,null,null,null,null,null,null,null,null,null,null,null,null,null,null,1,null,null,null,null,null,3,null,null,1]
[20,null,null,null,null,null,null,null,null,null,null,null,null,null,null,null,null,null,null,null,null,null,null,null,null,null,null,null,null,null,null,null,null,1,null,null,null,null,null,1,null,null,1]
[21,null,null,null,null,null,null,null,null,null,null,null,null,null,null,null,null,null,null,null,null,null,null,null,null,null,null,null,null,null,null,null,null,1,null,null,null,null,null,2,null,null,2]
[22,null,null,null,null,null,null,null,null,null,null,null,null,null,null,null,null,null,null,null,null,null,null,null,null,null,null,null,null,null,null,null,null,1,null,null,null,null,null,3,null,null,1]
[23,null,null,null,null,null,null,null,null,null,null,null,null,null,null,null,null,null,null,null,null,null,null,null,null,null,null,null,null,null,null,null,null,1,null,null,null,null,null,1,null,null,1]
[24,null,null,null,null,null,null,null,null,null,null,null,null,null,null,null,null,null,null,null,null,null,null,null,null,null,null,null,null,null,null,null,null,1,null,null,null,null,null,1,null,null,1]
[25]
[26]
[27]
[28]
[29]
[30]
[31]
[32]
[33]
[34]
[35]
[36]
[37]
[38]
[39]
[40]
[41,null,null,null,null,null,null,null,null,null,null,null,null,null,null,null,null,null,null,null,null,null,null,null,null,null,null,null,null,null,null,null,null,null,null,null,null,null,null,null,null,null,null,null,null,null,null,null,1]

{"sheet":"الدفتر اليومي","index":1,"n_rows":137,"n_cols":23,"rows_kept":137,"cut":false,"hidden":false,"merged":[[30,6,30,9],[31,6,31,9],[32,6,32,9],[78,19,79,20],[83,19,83,22],[80,5,80,12],[4,1,4,4],[4,8,4,10],[8,5,8,12],[9,5,9,12],[15,1,15,2],[18,5,18,12],[20,5,20,12],[21,5,21,12],[19,2,19,11],[10,5,10,12],[12,5,12,12],[13,5,13,12],[15,8,15,10],[17,5,17,12],[35,6,35,9],[36,6,36,9],[37,6,37,9],[38,6,38,9],[92,1,95,2],[92,4,95,13],[85,8,85,11],[72,19,72,22],[73,21,74,22],[73,19,74,20],[76,19,77,20],[76,21,77,22],[88,5,88,12],[90,5,90,12],[91,5,91,12],[81,1,81,13],[82,5,82,12],[83,5,83,12],[85,1,85,2],[87,5,87,12],[78,5,78,12],[79,5,79,12],[87,19,87,22],[89,18,89,19],[89,21,89,22],[82,19,82,22],[88,19,88,20],[74,9,74,11],[78,21,79,22],[89,1,89,13],[58,10,58,13],[76,1,76,2],[47,10,47,13],[48,10,48,13],[49,10,49,13],[50,10,50,13],[43,10,43,13],[44,10,44,13],[45,10,45,13],[59,10,59,13],[74,1,74,2],[74,5,74,8],[60,10,60,13],[61,10,61,13],[74,3,74,4],[58,6,58,9],[56,10,56,13],[61,6,61,9],[55,6,55,9],[43,6,43,9],[44,6,44,9],[56,6,56,9],[57,6,57,9],[57,10,57,13],[46,10,46,13],[85,3,85,4],[85,12,85,13],[50,6,50,9],[51,6,51,9],[52,6,52,9],[53,6,53,9],[54,6,54,9],[30,10,30,13],[31,10,31,13],[32,10,32,13],[33,10,33,13],[34,10,34,13],[35,10,35,13],[36,10,36,13],[37,10,37,13],[38,10,38,13],[85,19,85,22],[86,19,86,22],[33,6,33,9],[34,6,34,9],[40,6,40,9],[41,6,41,9],[39,10,39,13],[40,10,40,13],[41,10,41,13],[42,10,42,13],[51,10,51,13],[39,6,39,9],[42,6,42,9],[45,6,45,9],[46,6,46,9],[47,6,47,9],[48,6,48,9],[49,6,49,9],[59,6,59,9],[60,6,60,9],[52,10,52,13],[53,10,53,13],[54,10,54,13],[55,10,55,13]]}
[]
[null,null,null,null,null,null,null,null,null,null,null,null,null,null,null,null,null,null,null,null,1]
[null,null,null,null,"يـــــــــــــوم :",{"$f":"T79","v":"الأحـــــــــــــــد"},null,null,null,null,null,null,null,null,null,null,null,null,null,null,2]
[]
[null,"صباحا من الساعة :",null,null,null,null,null,null,"الى الساعـــــــــــــــــــــــــــــــــة :"]
[]
[null,"رقم الاسبوع :",{"$f":"V79","v":2}]
[null,null,null,null,null,null,null,null,null,null,null,null,null,null,null,null,null,"الكفاءة المستهدفة 1"]
[null,"التوقيت","النشاط",null,"الموضوع","الكفاءة المستهدفة",null,null,null,null,null,null,null,"رقم الحصة",null,null,"الأحـــــــــــــــد"]
[null,null,{"$f":"VLOOKUP(F3,'جدول الخدمة الاسبوعـــي'!B4:M8,2,0)","v":"قراءة ( أداء + فهم + هيكلة )"},null,{"$f":"IF(C10=\"إتمام النصاب\",\"\",VLOOKUP($C$7,'قاعدة البيانات'!A$6:AAH$100,MATCH(C10,'قاعدة البيانات'!A5:AAH5,0),0))","v":0},{"$f":"IF(C10=\"إتمام النصاب\",\"\",VLOOKUP($C$7,'قاعدة البيانات'!A$6:AAH$100,MATCH(R10,'قاعدة البيانات'!A5:AAH5,0),0))","v":0},null,null,null,null,null,null,null,{"$f":"IF(C10=\"إتمام النصاب\",\"\",VLOOKUP($C$7,'قاعدة البيانات'!A$6:AAH$100,MATCH(S10,'قاعدة البيانات'!A5:AAH5,0),0))","v":0},null,null,"الأثنيـــــــــــــن",{"$f":"IF(C10=\"ت -إسلامية ح 1\",\"الكفاءة المستهدفة 1\",IF(C10=\"ت - إسلامية ح 2\",\"الكفاءة المستهدفة 2\",IF(C10=\"ت - مدنية\",\"الكفاءة المستهدفة 3\",IF(C10=\"قراءة ( أداء + فهم + هيكلة )\",\"الكفاءة المستهدفة 4\",IF(C10=\"ت - شفوي\",\"الكفاءة المستهدفة 5\",IF(C10=\"قراءة ( أداء + فهم )\",\"الكفاءة المستهدفة 6\",IF(C10=\"ظواهر نحوية\",\"الكفاءة المستهدفة 7\",IF(C10=\"قراءة ( أداء  )\",\"الكفاءة المستهدفة 8\",IF(C10=\"الصرف / الاملاء\",\"الكفاءة المستهدفة 9\",IF(C10=\"مطالعة\",\"الكفاءة المستهدفة 10\",IF(C10=\"محفوظات\",\"الكفاءة المستهدفة 11\",IF(C10=\"ت - كتابي\",\"الكفاءة المستهدفة 12\",IF(C10=\"ت - ت - ك / إ مشروع\",\"الكفاءة المستهدفة 13\",IF(C10=\"نشاطات إدماجية\",\"الكفاءة المستهدفة 14\",IF(C10=\"رياضيات\",\"الكفاءة المستهدفة 15\",IF(C10=\"رياضيات 2\",\"الكفاءة المستهدفة 16\",IF(C10=\"رياضيات 3\",\"الكفاءة المستهدفة 17\",IF(C10=\"رياضيات 4\",\"الكفاءة المستهدفة 18\",IF(C10=\"رياضيات 5\",\"الكفاءة المستهدفة 19\",IF(C10=\"رياضيات 6\",\"الكفاءة المستهدفة 20\",IF(C10=\"ت - علمية و تكنولوجية 1\",\"الكفاءة المستهدفة 21\",IF(C10=\"ت - علمية و تكنولوجية 2\",\"الكفاءة المستهدفة 22\",IF(C10=\"تاريخ\",\"الكفاءة المستهدفة 23\",IF(C10=\"جغرافيــــــــا\",\"الكفاءة المستهدفة 24\",IF(C10=\"ت - تشكيلية / موسيقية\",\"الكفاءة المستهدفة 25\",IF(C10=\"ت - بدنية\",\"الكفاءة المستهدفة 26\",IF(C10=\"معالجة / رياضيات\",\"الكفاءة المستهدفة 27\",IF(C10=\"معالجة / لغة عربية\",\"الكفاءة المستهدفة 28\",IF(C10=\"إتمام النصاب\",\"الكفاءة المستهدفة 29\",)))))))))))))))))))))))))))))","v":"الكفاءة المستهدفة 4"},{"$f":"IF(C10=\"إتمام النصاب\",\"\",VLOOKUP(C10,E31:N62,2,))","v":"رقم الحصة 4"}]
[null,null,{"$f":"VLOOKUP(F3,'جدول الخدمة الاسبوعـــي'!B4:M8,3,0)","v":"ت - شفوي"},null,{"$f":"IF(C11=\"إتمام النصاب\",\"\",VLOOKUP($C$7,'قاعدة البيانات'!A$6:AAH$100,MATCH(C11,'قاعدة البيانات'!A5:AAH5,0),0))","v":0},{"$f":"IF(C11=\"إتمام النصاب\",\"\",VLOOKUP($C$7,'قاعدة البيانات'!A$6:AAH$100,MATCH(R11,'قاعدة البيانات'!A5:AAH5,0),0))","v":0},null,null,null,null,null,null,null,{"$f":"IF(C10=\"إتمام النصاب\",\"\",VLOOKUP($C$7,'قاعدة البيانات'!A$6:AAH$100,MATCH(S11,'قاعدة البيانات'!A5:AAH5,0),0))","v":0},null,null,"الثلاثــــــــــــاء",{"$f":"IF(C11=\"ت -إسلامية ح 1\",\"الكفاءة المستهدفة 1\",IF(C11=\"ت - إسلامية ح 2\",\"الكفاءة المستهدفة 2\",IF(C11=\"ت - مدنية\",\"الكفاءة المستهدفة 3\",IF(C11=\"قراءة ( أداء + فهم + هيكلة )\",\"الكفاءة المستهدفة 4\",IF(C11=\"ت - شفوي\",\"الكفاءة المستهدفة 5\",IF(C11=\"قراءة ( أداء + فهم )\",\"الكفاءة المستهدفة 6\",IF(C11=\"ظواهر نحوية\",\"الكفاءة المستهدفة 7\",IF(C11=\"قراءة ( أداء  )\",\"الكفاءة المستهدفة 8\",IF(C11=\"الصرف / الاملاء\",\"الكفاءة المستهدفة 9\",IF(C11=\"مطالعة\",\"الكفاءة المستهدفة 10\",IF(C11=\"محفوظات\",\"الكفاءة المستهدفة 11\",IF(C11=\"ت - كتابي\",\"الكفاءة المستهدفة 12\",IF(C11=\"ت - ت - ك / إ مشروع\",\"الكفاءة المستهدفة 13\",IF(C11=\"نشاطات إدماجية\",\"الكفاءة المستهدفة 14\",IF(C11=\"رياضيات\",\"الكفاءة المستهدفة 15\",IF(C11=\"رياضيات 2\",\"الكفاءة المستهدفة 16\",IF(C11=\"رياضيات 3\",\"الكفاءة المستهدفة 17\",IF(C11=\"رياضيات 4\",\"الكفاءة المستهدفة 18\",IF(C11=\"رياضيات 5\",\"الكفاءة المستهدفة 19\",IF(C11=\"رياضيات 6\",\"الكفاءة المستهدفة 20\",IF(C11=\"ت - علمية و تكنولوجية 1\",\"الكفاءة المستهدفة 21\",IF(C11=\"ت - علمية و تكنولوجية 2\",\"الكفاءة المستهدفة 22\",IF(C11=\"تاريخ\",\"الكفاءة المستهدفة 23\",IF(C11=\"جغرافيــــــــا\",\"الكفاءة المستهدفة 24\",IF(C11=\"ت - تشكيلية / موسيقية\",\"الكفاءة المستهدفة 25\",IF(C11=\"ت - بدنية\",\"الكفاءة المستهدفة 26\",IF(C11=\"معالجة / رياضيات\",\"الكفاءة المستهدفة 27\",IF(C11=\"معالجة / لغة عربية\",\"الكفاءة المستهدفة 28\",IF(C11=\"إتمام النصاب\",\"الكفاءة المستهدفة 29\",)))))))))))))))))))))))))))))","v":"الكفاءة المستهدفة 5"},{"$f":"IF(C11=\"إتمام النصاب\",\"\",VLOOKUP(C11,E31:N63,2,))","v":"رقم الحصة 7"}]
[null,null,null,null,null,null,null,null,null,null,null,null,null,null,null,null,"الأربعــــــــــــاء"]
[null,null,{"$f":"VLOOKUP(F3,'جدول الخدمة الاسبوعـــي'!B4:M8,5,0)","v":"رياضيات"},null,{"$f":"IF(C13=\"إتمام النصاب\",\"\",VLOOKUP($C$7,'قاعدة البيانات'!A$6:AAH$100,MATCH(C13,'قاعدة البيانات'!A5:AAH5,0),0))","v":0},{"$f":"IF(C13=\"إتمام النصاب\",\"\",VLOOKUP($C$7,'قاعدة البيانات'!A$6:AAH$100,MATCH(R13,'قاعدة البيانات'!A5:AAH5,0),0))","v":0},null,null,null,null,null,null,null,{"$f":"IF(C13=\"إتمام النصاب\",\"\",VLOOKUP($C$7,'قاعدة البيانات'!A$6:AAH$100,MATCH(S13,'قاعدة البيانات'!A5:AAH5,0),0))","v":0},null,null,"الخمــــــــــــيس",{"$f":"IF(C13=\"ت -إسلامية ح 1\",\"الكفاءة المستهدفة 1\",IF(C13=\"ت - إسلامية ح 2\",\"الكفاءة المستهدفة 2\",IF(C13=\"ت - مدنية\",\"الكفاءة المستهدفة 3\",IF(C13=\"قراءة ( أداء + فهم + هيكلة )\",\"الكفاءة المستهدفة 4\",IF(C13=\"ت - شفوي\",\"الكفاءة المستهدفة 5\",IF(C13=\"قراءة ( أداء + فهم )\",\"الكفاءة المستهدفة 6\",IF(C13=\"ظواهر نحوية\",\"الكفاءة المستهدفة 7\",IF(C13=\"قراءة ( أداء  )\",\"الكفاءة المستهدفة 8\",IF(C13=\"الصرف / الاملاء\",\"الكفاءة المستهدفة 9\",IF(C13=\"مطالعة\",\"الكفاءة المستهدفة 10\",IF(C13=\"محفوظات\",\"الكفاءة المستهدفة 11\",IF(C13=\"ت - كتابي\",\"الكفاءة المستهدفة 12\",IF(C13=\"ت - ت - ك / إ مشروع\",\"الكفاءة المستهدفة 13\",IF(C13=\"نشاطات إدماجية\",\"الكفاءة المستهدفة 14\",IF(C13=\"رياضيات\",\"الكفاءة المستهدفة 15\",IF(C13=\"رياضيات 2\",\"الكفاءة المستهدفة 16\",IF(C13=\"رياضيات 3\",\"الكفاءة المستهدفة 17\",IF(C13=\"رياضيات 4\",\"الكفاءة المستهدفة 18\",IF(C13=\"رياضيات 5\",\"الكفاءة المستهدفة 19\",IF(C13=\"رياضيات 6\",\"الكفاءة المستهدفة 20\",IF(C13=\"ت - علمية و تكنولوجية 1\",\"الكفاءة المستهدفة 21\",IF(C13=\"ت - علمية و تكنولوجية 2\",\"الكفاءة المستهدفة 22\",IF(C13=\"تاريخ\",\"الكفاءة المستهدفة 23\",IF(C13=\"جغرافيــــــــا\",\"الكفاءة المستهدفة 24\",IF(C13=\"ت - تشكيلية / موسيقية\",\"الكفاءة المستهدفة 25\",IF(C13=\"ت - بدنية\",\"الكفاءة المستهدفة 26\",IF(C13=\"معالجة / رياضيات\",\"الكفاءة المستهدفة 27\",IF(C13=\"معالجة / لغة عربية\",\"الكفاءة المستهدفة 28\",IF(C13=\"إتمام النصاب\",\"الكفاءة المستهدفة 29\",)))))))))))))))))))))))))))))","v":"الكفاءة المستهدفة 15"},{"$f":"IF(C13=\"إتمام النصاب\",\"\",VLOOKUP(C13,E31:N65,2,))","v":"رقم الحصة 15"}]
[null,null,{"$f":"VLOOKUP(F3,'جدول الخدمة الاسبوعـــي'!B4:M8,6,0)","v":"إتمام النصاب"},null,{"$f":"IF(C14=\"إتمام النصاب\",\"\",VLOOKUP($C$7,'قاعدة البيانات'!A$6:AAH$100,MATCH(C14,'قاعدة البيانات'!A5:AAH5,0),0))","v":""},{"$f":"IF(C14=\"إتمام النصاب\",\"\",VLOOKUP($C$7,'قاعدة البيانات'!A$6:AAH$100,MATCH(R14,'قاعدة البيانات'!A5:AAH5,0),0))","v":""},null,null,null,null,null,null,null,{"$f":"IF(C14=\"إتمام النصاب\",\"\",VLOOKUP($C$7,'قاعدة البيانات'!A$6:AAH$100,MATCH(S14,'قاعدة البيانات'!A5:AAH5,0),0))","v":""},null,null,null,{"$f":"IF(C14=\"ت -إسلامية ح 1\",\"الكفاءة المستهدفة 1\",IF(C14=\"ت - إسلامية ح 2\",\"الكفاءة المستهدفة 2\",IF(C14=\"ت - مدنية\",\"الكفاءة المستهدفة 3\",IF(C14=\"قراءة ( أداء + فهم + هيكلة )\",\"الكفاءة المستهدفة 4\",IF(C14=\"ت - شفوي\",\"الكفاءة المستهدفة 5\",IF(C14=\"قراءة ( أداء + فهم )\",\"الكفاءة المستهدفة 6\",IF(C14=\"ظواهر نحوية\",\"الكفاءة المستهدفة 7\",IF(C14=\"قراءة ( أداء  )\",\"الكفاءة المستهدفة 8\",IF(C14=\"الصرف / الاملاء\",\"الكفاءة المستهدفة 9\",IF(C14=\"مطالعة\",\"الكفاءة المستهدفة 10\",IF(C14=\"محفوظات\",\"الكفاءة المستهدفة 11\",IF(C14=\"ت - كتابي\",\"الكفاءة المستهدفة 12\",IF(C14=\"ت - ت - ك / إ مشروع\",\"الكفاءة المستهدفة 13\",IF(C14=\"نشاطات إدماجية\",\"الكفاءة المستهدفة 14\",IF(C14=\"رياضيات\",\"الكفاءة المستهدفة 15\",IF(C14=\"رياضيات 2\",\"الكفاءة المستهدفة 16\",IF(C14=\"رياضيات 3\",\"الكفاءة المستهدفة 17\",IF(C14=\"رياضيات 4\",\"الكفاءة المستهدفة 18\",IF(C14=\"رياضيات 5\",\"الكفاءة المستهدفة 19\",IF(C14=\"رياضيات 6\",\"الكفاءة المستهدفة 20\",IF(C14=\"ت - علمية و تكنولوجية 1\",\"الكفاءة المستهدفة 21\",IF(C14=\"ت - علمية و تكنولوجية 2\",\"الكفاءة المستهدفة 22\",IF(C14=\"تاريخ\",\"الكفاءة المستهدفة 23\",IF(C14=\"جغرافيــــــــا\",\"الكفاءة المستهدفة 24\",IF(C14=\"ت - تشكيلية / موسيقية\",\"الكفاءة المستهدفة 25\",IF(C14=\"ت - بدنية\",\"الكفاءة المستهدفة 26\",IF(C14=\"معالجة / رياضيات\",\"الكفاءة المستهدفة 27\",IF(C14=\"معالجة / لغة عربية\",\"الكفاءة المستهدفة 28\",IF(C14=\"إتمام النصاب\",\"الكفاءة المستهدفة 29\",)))))))))))))))))))))))))))))","v":"الكفاءة المستهدفة 29"},{"$f":"IF(C14=\"إتمام النصاب\",\"\",VLOOKUP(C14,E31:N66,2,))","v":""}]
[]
[null,"مساء من الساعة :",null,null,null,null,null,null,"الى الساعـــــــــــــــــــــــــــــــــة :"]
[]
[null,null,{"$f":"VLOOKUP(F3,'جدول الخدمة الاسبوعـــي'!B4:M8,8,0)","v":"ت -إسلامية ح 1"},null,{"$f":"IF(C18=\"إتمام النصاب\",\"\",VLOOKUP($C$7,'قاعدة البيانات'!A$6:AAH$100,MATCH(C18,'قاعدة البيانات'!A5:AAH5,0),0))","v":0},{"$f":"IF(C18=\"إتمام النصاب\",\"\",VLOOKUP($C$7,'قاعدة البيانات'!A$6:AAH$100,MATCH(R18,'قاعدة البيانات'!A5:AAH5,0),0))","v":0},null,null,null,null,null,null,null,{"$f":"IF(C18=\"إتمام النصاب\",\"\",VLOOKUP($C$7,'قاعدة البيانات'!A$6:AAH$100,MATCH(S18,'قاعدة البيانات'!A5:AAH5,0),0))","v":0},null,null,null,{"$f":"IF(C18=\"ت -إسلامية ح 1\",\"الكفاءة المستهدفة 1\",IF(C18=\"ت - إسلامية ح 2\",\"الكفاءة المستهدفة 2\",IF(C18=\"ت - مدنية\",\"الكفاءة المستهدفة 3\",IF(C18=\"قراءة ( أداء + فهم + هيكلة )\",\"الكفاءة المستهدفة 4\",IF(C18=\"ت - شفوي\",\"الكفاءة المستهدفة 5\",IF(C18=\"قراءة ( أداء + فهم )\",\"الكفاءة المستهدفة 6\",IF(C18=\"ظواهر نحوية\",\"الكفاءة المستهدفة 7\",IF(C18=\"قراءة ( أداء  )\",\"الكفاءة المستهدفة 8\",IF(C18=\"الصرف / الاملاء\",\"الكفاءة المستهدفة 9\",IF(C18=\"مطالعة\",\"الكفاءة المستهدفة 10\",IF(C18=\"محفوظات\",\"الكفاءة المستهدفة 11\",IF(C18=\"ت - كتابي\",\"الكفاءة المستهدفة 12\",IF(C18=\"ت - ت - ك / إ مشروع\",\"الكفاءة المستهدفة 13\",IF(C18=\"نشاطات إدماجية\",\"الكفاءة المستهدفة 14\",IF(C18=\"رياضيات\",\"الكفاءة المستهدفة 15\",IF(C18=\"رياضيات 2\",\"الكفاءة المستهدفة 16\",IF(C18=\"رياضيات 3\",\"الكفاءة المستهدفة 17\",IF(C18=\"رياضيات 4\",\"الكفاءة المستهدفة 18\",IF(C18=\"رياضيات 5\",\"الكفاءة المستهدفة 19\",IF(C18=\"رياضيات 6\",\"الكفاءة المستهدفة 20\",IF(C18=\"ت - علمية و تكنولوجية 1\",\"الكفاءة المستهدفة 21\",IF(C18=\"ت - علمية و تكنولوجية 2\",\"الكفاءة المستهدفة 22\",IF(C18=\"تاريخ\",\"الكفاءة المستهدفة 23\",IF(C18=\"جغرافيــــــــا\",\"الكفاءة المستهدفة 24\",IF(C18=\"ت - تشكيلية / موسيقية\",\"الكفاءة المستهدفة 25\",IF(C18=\"ت - بدنية\",\"الكفاءة المستهدفة 26\",IF(C18=\"معالجة / رياضيات\",\"الكفاءة المستهدفة 27\",IF(C18=\"معالجة / لغة عربية\",\"الكفاءة المستهدفة 28\",IF(C18=\"إتمام النصاب\",\"الكفاءة المستهدفة 29\",)))))))))))))))))))))))))))))","v":"الكفاءة المستهدفة 1"},{"$f":"IF(C18=\"إتمام النصاب\",\"\",VLOOKUP(C18,E31:N70,2,))","v":"رقم الحصة 1"}]
[null,null,{"$f":"VLOOKUP(F3,'جدول الخدمة الاسبوعـــي'!B4:M8,9,0)","v":"ت - علمية و تكنولوجية 1"},null,{"$f":"IF(C19=\"إتمام النصاب\",\"\",VLOOKUP($C$7,'قاعدة البيانات'!A$6:AAH$100,MATCH(C19,'قاعدة البيانات'!A5:AAH5,0),0))","v":0},{"$f":"IF(C19=\"إتمام النصاب\",\"\",VLOOKUP($C$7,'قاعدة البيانات'!A$6:AAH$100,MATCH(R19,'قاعدة البيانات'!A5:AAH5,0),0))","v":0},null,null,null,null,null,null,null,{"$f":"IF(C19=\"إتمام النصاب\",\"\",VLOOKUP($C$7,'قاعدة البيانات'!A$6:AAH$100,MATCH(S19,'قاعدة البيانات'!A5:AAH5,0),0))","v":0},null,null,null,{"$f":"IF(C19=\"ت -إسلامية ح 1\",\"الكفاءة المستهدفة 1\",IF(C19=\"ت - إسلامية ح 2\",\"الكفاءة المستهدفة 2\",IF(C19=\"ت - مدنية\",\"الكفاءة المستهدفة 3\",IF(C19=\"قراءة ( أداء + فهم + هيكلة )\",\"الكفاءة المستهدفة 4\",IF(C19=\"ت - شفوي\",\"الكفاءة المستهدفة 5\",IF(C19=\"قراءة ( أداء + فهم )\",\"الكفاءة المستهدفة 6\",IF(C19=\"ظواهر نحوية\",\"الكفاءة المستهدفة 7\",IF(C19=\"قراءة ( أداء  )\",\"الكفاءة المستهدفة 8\",IF(C19=\"الصرف / الاملاء\",\"الكفاءة المستهدفة 9\",IF(C19=\"مطالعة\",\"الكفاءة المستهدفة 10\",IF(C19=\"محفوظات\",\"الكفاءة المستهدفة 11\",IF(C19=\"ت - كتابي\",\"الكفاءة المستهدفة 12\",IF(C19=\"ت - ت - ك / إ مشروع\",\"الكفاءة المستهدفة 13\",IF(C19=\"نشاطات إدماجية\",\"الكفاءة المستهدفة 14\",IF(C19=\"رياضيات\",\"الكفاءة المستهدفة 15\",IF(C19=\"رياضيات 2\",\"الكفاءة المستهدفة 16\",IF(C19=\"رياضيات 3\",\"الكفاءة المستهدفة 17\",IF(C19=\"رياضيات 4\",\"الكفاءة المستهدفة 18\",IF(C19=\"رياضيات 5\",\"الكفاءة المستهدفة 19\",IF(C19=\"رياضيات 6\",\"الكفاءة المستهدفة 20\",IF(C19=\"ت - علمية و تكنولوجية 1\",\"الكفاءة المستهدفة 21\",IF(C19=\"ت - علمية و تكنولوجية 2\",\"الكفاءة المستهدفة 22\",IF(C19=\"تاريخ\",\"الكفاءة المستهدفة 23\",IF(C19=\"جغرافيــــــــا\",\"الكفاءة المستهدفة 24\",IF(C19=\"ت - تشكيلية / موسيقية\",\"الكفاءة المستهدفة 25\",IF(C19=\"ت - بدنية\",\"الكفاءة المستهدفة 26\",IF(C19=\"معالجة / رياضيات\",\"الكفاءة المستهدفة 27\",IF(C19=\"معالجة / لغة عربية\",\"الكفاءة المستهدفة 28\",IF(C19=\"إتمام النصاب\",\"الكفاءة المستهدفة 29\",)))))))))))))))))))))))))))))","v":"الكفاءة المستهدفة 21"},{"$f":"IF(C19=\"إتمام النصاب\",\"\",VLOOKUP(C19,E31:N71,2,))","v":"رقم الحصة 21"}]
[]
[null,null,{"$f":"VLOOKUP(F3,'جدول الخدمة الاسبوعـــي'!B4:M8,11,0)","v":"جغرافيــــــــا"},null,{"$f":"IF(C21=\"إتمام النصاب\",\"\",VLOOKUP($C$7,'قاعدة البيانات'!A$6:AAH$100,MATCH(C21,'قاعدة البيانات'!A5:AAH5,0),0))","v":0},{"$f":"IF(C21=\"إتمام النصاب\",\"\",VLOOKUP($C$7,'قاعدة البيانات'!A$6:AAH$100,MATCH(R21,'قاعدة البيانات'!A5:AAH5,0),0))","v":0},null,null,null,null,null,null,null,{"$f":"IF(C21=\"إتمام النصاب\",\"\",VLOOKUP($C$7,'قاعدة البيانات'!A$6:AAH$100,MATCH(S21,'قاعدة البيانات'!A5:AAH5,0),0))","v":0},null,null,null,{"$f":"IF(C21=\"ت -إسلامية ح 1\",\"الكفاءة المستهدفة 1\",IF(C21=\"ت - إسلامية ح 2\",\"الكفاءة المستهدفة 2\",IF(C21=\"ت - مدنية\",\"الكفاءة المستهدفة 3\",IF(C21=\"قراءة ( أداء + فهم + هيكلة )\",\"الكفاءة المستهدفة 4\",IF(C21=\"ت - شفوي\",\"الكفاءة المستهدفة 5\",IF(C21=\"قراءة ( أداء + فهم )\",\"الكفاءة المستهدفة 6\",IF(C21=\"ظواهر نحوية\",\"الكفاءة المستهدفة 7\",IF(C21=\"قراءة ( أداء  )\",\"الكفاءة المستهدفة 8\",IF(C21=\"الصرف / الاملاء\",\"الكفاءة المستهدفة 9\",IF(C21=\"مطالعة\",\"الكفاءة المستهدفة 10\",IF(C21=\"محفوظات\",\"الكفاءة المستهدفة 11\",IF(C21=\"ت - كتابي\",\"الكفاءة المستهدفة 12\",IF(C21=\"ت - ت - ك / إ مشروع\",\"الكفاءة المستهدفة 13\",IF(C21=\"نشاطات إدماجية\",\"الكفاءة المستهدفة 14\",IF(C21=\"رياضيات\",\"الكفاءة المستهدفة 15\",IF(C21=\"رياضيات 2\",\"الكفاءة المستهدفة 16\",IF(C21=\"رياضيات 3\",\"الكفاءة المستهدفة 17\",IF(C21=\"رياضيات 4\",\"الكفاءة المستهدفة 18\",IF(C21=\"رياضيات 5\",\"الكفاءة المستهدفة 19\",IF(C21=\"رياضيات 6\",\"الكفاءة المستهدفة 20\",IF(C21=\"ت - علمية و تكنولوجية 1\",\"الكفاءة المستهدفة 21\",IF(C21=\"ت - علمية و تكنولوجية 2\",\"الكفاءة المستهدفة 22\",IF(C21=\"تاريخ\",\"الكفاءة المستهدفة 23\",IF(C21=\"جغرافيــــــــا\",\"الكفاءة المستهدفة 24\",IF(C21=\"ت - تشكيلية / موسيقية\",\"الكفاءة المستهدفة 25\",IF(C21=\"ت - بدنية\",\"الكفاءة المستهدفة 26\",IF(C21=\"معالجة / رياضيات\",\"الكفاءة المستهدفة 27\",IF(C21=\"معالجة / لغة عربية\",\"الكفاءة المستهدفة 28\",IF(C21=\"إتمام النصاب\",\"الكفاءة المستهدفة 29\",)))))))))))))))))))))))))))))","v":"الكفاءة المستهدفة 24"},{"$f":"IF(C21=\"إتمام النصاب\",\"\",VLOOKUP(C21,E31:N73,2,))","v":"رقم الحصة 24"}]
[null,null,{"$f":"VLOOKUP(F3,'جدول الخدمة الاسبوعـــي'!B4:M8,12,0)","v":"ت - بدنية"},null,{"$f":"IF(C22=\"إتمام النصاب\",\"\",VLOOKUP($C$7,'قاعدة البيانات'!A$6:AAH$100,MATCH(C22,'قاعدة البيانات'!A5:AAH5,0),0))","v":0},{"$f":"IF(C22=\"إتمام النصاب\",\"\",VLOOKUP($C$7,'قاعدة البيانات'!A$6:AAH$100,MATCH(R22,'قاعدة البيانات'!A5:AAH5,0),0))","v":0},null,null,null,null,null,null,null,{"$f":"IF(C22=\"إتمام النصاب\",\"\",VLOOKUP($C$7,'قاعدة البيانات'!A$6:AAH$100,MATCH(S22,'قاعدة البيانات'!A5:AAH5,0),0))","v":0},null,null,null,{"$f":"IF(C22=\"ت -إسلامية ح 1\",\"الكفاءة المستهدفة 1\",IF(C22=\"ت - إسلامية ح 2\",\"الكفاءة المستهدفة 2\",IF(C22=\"ت - مدنية\",\"الكفاءة المستهدفة 3\",IF(C22=\"قراءة ( أداء + فهم + هيكلة )\",\"الكفاءة المستهدفة 4\",IF(C22=\"ت - شفوي\",\"الكفاءة المستهدفة 5\",IF(C22=\"قراءة ( أداء + فهم )\",\"الكفاءة المستهدفة 6\",IF(C22=\"ظواهر نحوية\",\"الكفاءة المستهدفة 7\",IF(C22=\"قراءة ( أداء  )\",\"الكفاءة المستهدفة 8\",IF(C22=\"الصرف / الاملاء\",\"الكفاءة المستهدفة 9\",IF(C22=\"مطالعة\",\"الكفاءة المستهدفة 10\",IF(C22=\"محفوظات\",\"الكفاءة المستهدفة 11\",IF(C22=\"ت - كتابي\",\"الكفاءة المستهدفة 12\",IF(C22=\"ت - ت - ك / إ مشروع\",\"الكفاءة المستهدفة 13\",IF(C22=\"نشاطات إدماجية\",\"الكفاءة المستهدفة 14\",IF(C22=\"رياضيات\",\"الكفاءة المستهدفة 15\",IF(C22=\"رياضيات 2\",\"الكفاءة المستهدفة 16\",IF(C22=\"رياضيات 3\",\"الكفاءة المستهدفة 17\",IF(C22=\"رياضيات 4\",\"الكفاءة المستهدفة 18\",IF(C22=\"رياضيات 5\",\"الكفاءة المستهدفة 19\",IF(C22=\"رياضيات 6\",\"الكفاءة المستهدفة 20\",IF(C22=\"ت - علمية و تكنولوجية 1\",\"الكفاءة المستهدفة 21\",IF(C22=\"ت - علمية و تكنولوجية 2\",\"الكفاءة المستهدفة 22\",IF(C22=\"تاريخ\",\"الكفاءة المستهدفة 23\",IF(C22=\"جغرافيــــــــا\",\"الكفاءة المستهدفة 24\",IF(C22=\"ت - تشكيلية / موسيقية\",\"الكفاءة المستهدفة 25\",IF(C22=\"ت - بدنية\",\"الكفاءة المستهدفة 26\",IF(C22=\"معالجة / رياضيات\",\"الكفاءة المستهدفة 27\",IF(C22=\"معالجة / لغة عربية\",\"الكفاءة المستهدفة 28\",IF(C22=\"إتمام النصاب\",\"الكفاءة المستهدفة 29\",)))))))))))))))))))))))))))))","v":"الكفاءة المستهدفة 26"},{"$f":"IF(C22=\"إتمام النصاب\",\"\",VLOOKUP(C22,E31:N74,2,))","v":"رقم الحصة 26"}]
[]
[]
[]
[]
[]
[]
[]
[]
[null,null,null,null,"قراءة ( أداء + فهم + هيكلة )","رقم الحصة 4","قراءة ( أداء + فهم + هيكلة )",null,null,null,"قراءة ( أداء + فهم + هيكلة )"]
[null,null,null,null,"قراءة ( أداء + فهم )","رقم الحصة 6","قراءة ( أداء + فهم )",null,null,null,"قراءة ( أداء + فهم )"]
[null,null,null,null,"قراءة ( أداء  )","رقم الحصة 8","قراءة ( أداء  )",null,null,null,"قراءة ( أداء + فهم )"]
[null,null,null,null,"ت - شفوي","رقم الحصة 7","ت - شفوي",null,null,null,"تعبير شفوي"]
[null,null,null,null,"ت - كتابي","رقم الحصة 12","ت - كتابي",null,null,null,"تعبير كتابي"]
[null,null,null,null,"ت - ت - ك / إ مشروع","رقم الحصة 13","ت - ت - ك / إ مشروع",null,null,null,"تصحيح تعبير + إ مشروع"]
[null,null,null,null,"ظواهر نحوية","رقم الحصة 7","ظواهر نحوية",null,null,null,"ظواهر نحوية"]
[null,null,null,null,"الصرف / الاملاء","رقم الحصة 9","الصرف / الاملاء",null,null,null,"الصرف / الاملاء"]
[null,null,null,null,"محفوظات","رقم الحصة 11","محفوظات",null,null,null,"محفوظات"]
[null,null,null,null,"مطالعة","رقم الحصة 10","مطالعة",null,null,null,"مطـــــــــالعة"]
[null,null,null,null,"نشاطات إدماجية","رقم الحصة 14","نشاطات إدماجية",null,null,null,"نشاطات إدماجية"]
[null,null,null,null,"إتمام النصاب","رقم الحصة 29","إتمام النصاب",null,null,null,"إتمام النصاب"]
[null,null,null,null,"رياضيات","رقم الحصة 15","رياضيات",null,null,null,"رياضيات"]
[null,null,null,null,"رياضيات 2","رقم الحصة 16","رياضيات 2",null,null,null,"رياضيــــــــــــــــــات"]
[null,null,null,null,"رياضيات 3","رقم الحصة 17","رياضيات 3",null,null,null,"رياضيــــــــــــــــــات"]
[null,null,null,null,"رياضيات 4","رقم الحصة 18","رياضيات 4",null,null,null,"رياضيــــــــــــــــــات"]
[null,null,null,null,"رياضيات 5","رقم الحصة 19","رياضيات 5",null,null,null,"رياضيــــــــــــــــــات"]
[null,null,null,null,"رياضيات 6","رقم الحصة 20","رياضيات 6",null,null,null,"رياضيــــــــــــــــــات"]
[null,null,null,null,"ت -إسلامية ح 1","رقم الحصة 1","ت -إسلامية ح 1",null,null,null,"تربية إسلامية"]
[null,null,null,null,"ت - إسلامية ح 2","رقم الحصة 2","ت - إسلامية ح 2",null,null,null,"تربية إسلامية"]
[null,null,null,null,"ت - علمية و تكنولوجية 1","رقم الحصة 21","ت - علمية و تكنولوجية 1",null,null,null,"ت - علمية و تكنولوجية"]
[null,null,null,null,"ت - علمية و تكنولوجية 2","رقم الحصة 22","ت - علمية و تكنولوجية 2",null,null,null,"ت - علمية و تكنولوجية"]
[null,null,null,null,"ت - مدنية","رقم الحصة 3","ت - مدنية",null,null,null,"تربية مدنية"]
[null,null,null,null,"تاريخ","رقم الحصة 23","تاريخ",null,null,null,"تاريــــــــخ"]
[null,null,null,null,"جغرافيــــــــا","رقم الحصة 24","جغرافيــــــــا",null,null,null,"جغرافيــــــــا"]
[null,null,null,null,"ت - تشكيلية / موسيقية","رقم الحصة 25","ت - تشكيلية / موسيقية",null,null,null,"ت - تشكيلية / موسيقية"]
[null,null,null,null,"نشاطات لا صفية","رقم الحصة 30","نشاطات لا صفية",null,null,null,"نشاطات لا صفية"]
[null,null,null,null,"الدّعـــــــــــــــــم","رقم الحصة 31","الدّعـــــــــــــــــم",null,null,null,"الدّعـــــــــــــــــم"]
[null,null,null,null,"الفريق التربوي","رقم الحصة 32","الفريق التربوي",null,null,null,"الفريق التربوي"]
[null,null,null,null,"ت - بدنية","رقم الحصة 26","ت - بدنية",null,null,null,"تربية  بدنية"]
[null,null,null,null,"معالجة / رياضيات","رقم الحصة 27","معالجة / رياضيات",null,null,null,"معالجة / رياضيات"]
[null,null,null,null,"معالجة / لغة عربية","رقم الحصة 28","معالجة / لغة عربية",null,null,null,"معالجة / لغة عربية"]
[]
[]
[]
[]
[]
[]
[]
[]
[]
[]
[null,null,null,null,"يـــــــــــــوم :",{"$f":"T79","v":"الأحـــــــــــــــد"},18,"جـــــــــانفي",2015,"الموافق لـ",27,"ربيـــــــــع الأول",1436,null,null,null,null,null,null,"ادخل البيانات التالية"]
[null,null,null,null,null,null,null,null,null,null,null,null,null,null,null,null,null,null,null,"اليوم",null,"رقم الأسبوع"]
[null,"صباحا من الساعة :",null,"الثامنـــــــــــــــــــــــــة",null,"الى الساعـــــــــــــــــــــــــــــــــة :",null,null,null,"الحادية عشرة و الربع"]
[]
[null,"رقم الاسبــــــــــــــــوع :",null,{"$f":"V79","v":2}]
[null,null,null,null,null,null,null,null,null,null,null,null,null,null,null,null,null,"الكفاءة المستهدفة 1"]
[null,"التوقيت","النشاط","المدة","المحتوى المعرفي","الكفاءة المستهدفة",null,null,null,null,null,null,null,"رقم ح",null,null,"الأحـــــــــــــــد",null,null,"الأحـــــــــــــــد",null,2]
[null,8,{"$f":"IF(C10=0,\"\",VLOOKUP(C10,G31:N62,5,))","v":"قراءة ( أداء + فهم + هيكلة )"},{"$f":"IF(C80=\"إتمام النصاب\",\"\",IF(C80=\"\",\"\",IF(C80=\"الصرف / الاملاء\",\"65 د\",IF(C80=\"ظواهر نحوية\",\"65 د\",IF(C80=\"تعبير شفوي\",\"30 د\",IF(C80=\"قراءة ( أداء + فهم )\",\"25 د\",IF(C80=\"قراءة ( أداء + فهم + هيكلة )\",\"60 د\",IF(C80<>\"قراءة ( أداء + فهم + هيكلة )\",\"45 د\",IF(C80<>\"قراءة ( أداء + فهم )\",\"45 د\")))))))))","v":"60 د"},{"$f":"IF(C80=\"\",\"\",IF(E10=0,\"\",E10))","v":""},{"$f":"IF(E80=\"\",\"\",IF(C80=\"\",\"\",IF(F10=0,\"\",F10)))","v":""},null,null,null,null,null,null,null,{"$f":"IF(C80=\"\",\"\",IF(N10=0,\"\",N10))","v":""},null,null,"الأثنيـــــــــــــن",{"$f":"IF(C80=\"ت -إسلامية ح 1\",\"الكفاءة المستهدفة 1\",IF(C80=\"ت - إسلامية ح 2\",\"الكفاءة المستهدفة 2\",IF(C80=\"ت - مدنية\",\"الكفاءة المستهدفة 3\",IF(C80=\"قراءة ( أداء + فهم + هيكلة )\",\"الكفاءة المستهدفة 4\",IF(C80=\"ت - شفوي\",\"الكفاءة المستهدفة 5\",IF(C80=\"قراءة ( أداء + فهم )\",\"الكفاءة المستهدفة 6\",IF(C80=\"ظواهر نحوية\",\"الكفاءة المستهدفة 7\",IF(C80=\"قراءة ( أداء  )\",\"الكفاءة المستهدفة 8\",IF(C80=\"الصرف / الاملاء\",\"الكفاءة المستهدفة 9\",IF(C80=\"مطالعة\",\"الكفاءة المستهدفة 10\",IF(C80=\"محفوظات\",\"الكفاءة المستهدفة 11\",IF(C80=\"ت - كتابي\",\"الكفاءة المستهدفة 12\",IF(C80=\"ت - ت - ك / إ مشروع\",\"الكفاءة المستهدفة 13\",IF(C80=\"خط / ن إدماج\",\"الكفاءة المستهدفة 14\",IF(C80=\"رياضيات\",\"الكفاءة المستهدفة 15\",IF(C80=\"رياضيات 2\",\"الكفاءة المستهدفة 16\",IF(C80=\"رياضيات 3\",\"الكفاءة المستهدفة 17\",IF(C80=\"رياضيات 4\",\"الكفاءة المستهدفة 18\",IF(C80=\"رياضيات 5\",\"الكفاءة المستهدفة 19\",IF(C80=\"رياضيات 6\",\"الكفاءة المستهدفة 20\",IF(C80=\"ت - علمية و تكنولوجية 1\",\"الكفاءة المستهدفة 21\",IF(C80=\"ت - علمية و تكنولوجية 2\",\"الكفاءة المستهدفة 22\",IF(C80=\"تاريخ\",\"الكفاءة المستهدفة 23\",IF(C80=\"جغرافيــــــــا\",\"الكفاءة المستهدفة 24\",IF(C80=\"ت - تشكيلية / موسيقية\",\"الكفاءة المستهدفة 25\",IF(C80=\"ت - بدنية\",\"الكفاءة المستهدفة 26\",IF(C80=\"معالجة / رياضيات\",\"الكفاءة المستهدفة 27\",IF(C80=\"معالجة / لغة عربية\",\"الكفاءة المستهدفة 28\",IF(C80=\"إتمام النصاب\",\"الكفاءة المستهدفة 29\",)))))))))))))))))))))))))))))","v":"الكفاءة المستهدفة 4"}]
[null,"9و30",{"$f":"IF(C11=0,\"\",VLOOKUP(C11,G31:N62,5,))","v":"تعبير شفوي"},{"$f":"IF(C81=\"إتمام النصاب\",\"\",IF(C81=\"\",\"\",IF(C81=\"الصرف / الاملاء\",\"65 د\",IF(C81=\"ظواهر نحوية\",\"65 د\",IF(C81=\"تعبير شفوي\",\"30 د\",IF(C81=\"قراءة ( أداء + فهم )\",\"25 د\",IF(C81=\"قراءة ( أداء + فهم + هيكلة )\",\"60 د\",IF(C81<>\"قراءة ( أداء + فهم + هيكلة )\",\"45 د\",IF(C81<>\"قراءة ( أداء + فهم )\",\"45 د\")))))))))","v":"30 د"},{"$f":"IF(C81=\"\",\"\",IF(E11=0,\"\",E11))","v":""},{"$f":"IF(E81=\"\",\"\",IF(C81=\"\",\"\",IF(F11=0,\"\",F11)))","v":""},null,null,null,null,null,null,null,{"$f":"IF(C81=\"\",\"\",IF(N11=0,\"\",N11))","v":""},null,null,"الثلاثــــــــــــاء",{"$f":"IF(C81=\"ت -إسلامية ح 1\",\"الكفاءة المستهدفة 1\",IF(C81=\"ت - إسلامية ح 2\",\"الكفاءة المستهدفة 2\",IF(C81=\"ت - مدنية\",\"الكفاءة المستهدفة 3\",IF(C81=\"قراءة ( أداء + فهم + هيكلة )\",\"الكفاءة المستهدفة 4\",IF(C81=\"ت - شفوي\",\"الكفاءة المستهدفة 5\",IF(C81=\"قراءة ( أداء + فهم )\",\"الكفاءة المستهدفة 6\",IF(C81=\"ظواهر نحوية\",\"الكفاءة المستهدفة 7\",IF(C81=\"قراءة ( أداء  )\",\"الكفاءة المستهدفة 8\",IF(C81=\"الصرف / الاملاء\",\"الكفاءة المستهدفة 9\",IF(C81=\"مطالعة\",\"الكفاءة المستهدفة 10\",IF(C81=\"محفوظات\",\"الكفاءة المستهدفة 11\",IF(C81=\"ت - كتابي\",\"الكفاءة المستهدفة 12\",IF(C81=\"ت - ت - ك / إ مشروع\",\"الكفاءة المستهدفة 13\",IF(C81=\"نشاطات إدماجية \",\"الكفاءة المستهدفة 14\",IF(C81=\"رياضيات\",\"الكفاءة المستهدفة 15\",IF(C81=\"رياضيات 2\",\"الكفاءة المستهدفة 16\",IF(C81=\"رياضيات 3\",\"الكفاءة المستهدفة 17\",IF(C81=\"رياضيات 4\",\"الكفاءة المستهدفة 18\",IF(C81=\"رياضيات 5\",\"الكفاءة المستهدفة 19\",IF(C81=\"رياضيات 6\",\"الكفاءة المستهدفة 20\",IF(C81=\"ت - علمية و تكنولوجية 1\",\"الكفاءة المستهدفة 21\",IF(C81=\"ت - علمية و تكنولوجية 2\",\"الكفاءة المستهدفة 22\",IF(C81=\"تاريخ\",\"الكفاءة المستهدفة 23\",IF(C81=\"جغرافيــــــــا\",\"الكفاءة المستهدفة 24\",IF(C81=\"ت - تشكيلية / موسيقية\",\"الكفاءة المستهدفة 25\",IF(C81=\"ت - بدنية\",\"الكفاءة المستهدفة 26\",IF(C81=\"معالجة / رياضيات\",\"الكفاءة المستهدفة 27\",IF(C81=\"معالجة / لغة عربية\",\"الكفاءة المستهدفة 28\",IF(C81=\"إتمام النصاب\",\"الكفاءة المستهدفة 29\",)))))))))))))))))))))))))))))","v":0}]
[null,"الاستــــــــــــــــــــــــــــــــــــــــــــــــــــــــــــــــــــــــــــراحــــــــــــــــــــــــــــــــــــــــــــــــة",null,null,null,null,null,null,null,null,null,null,null,null,null,null,"الأربعــــــــــــاء"]
[null,"9و45",{"$f":"IF(C13=0,\"\",VLOOKUP(C13,G31:N62,5,))","v":"رياضيات"},{"$f":"IF(C83=\"إتمام النصاب\",\"\",IF(C83=\"\",\"\",IF(C83=\"الصرف / الاملاء\",\"65 د\",IF(C83=\"ظواهر نحوية\",\"65 د\",IF(C83=\"تعبير شفوي\",\"30 د\",IF(C83=\"قراءة ( أداء + فهم )\",\"25 د\",IF(C83=\"قراءة ( أداء + فهم + هيكلة )\",\"60 د\",IF(C83<>\"قراءة ( أداء + فهم + هيكلة )\",\"45 د\",IF(C83<>\"قراءة ( أداء + فهم )\",\"45 د\")))))))))","v":"45 د"},{"$f":"IF(C83=\"\",\"\",IF(E13=0,\"\",E13))","v":""},{"$f":"IF(E83=\"\",\"\",IF(C83=\"\",\"\",IF(F13=0,\"\",F13)))","v":""},null,null,null,null,null,null,null,{"$f":"IF(C83=\"\",\"\",IF(N13=0,\"\",N13))","v":""},null,null,"الخمــــــــــــيس",{"$f":"IF(C83=\"ت -إسلامية ح 1\",\"الكفاءة المستهدفة 1\",IF(C83=\"ت - إسلامية ح 2\",\"الكفاءة المستهدفة 2\",IF(C83=\"ت - مدنية\",\"الكفاءة المستهدفة 3\",IF(C83=\"قراءة ( أداء + فهم + هيكلة )\",\"الكفاءة المستهدفة 4\",IF(C83=\"ت - شفوي\",\"الكفاءة المستهدفة 5\",IF(C83=\"قراءة ( أداء + فهم )\",\"الكفاءة المستهدفة 6\",IF(C83=\"ظواهر نحوية\",\"الكفاءة المستهدفة 7\",IF(C83=\"قراءة ( أداء  )\",\"الكفاءة المستهدفة 8\",IF(C83=\"الصرف / الاملاء\",\"الكفاءة المستهدفة 9\",IF(C83=\"مطالعة\",\"الكفاءة المستهدفة 10\",IF(C83=\"محفوظات\",\"الكفاءة المستهدفة 11\",IF(C83=\"ت - كتابي\",\"الكفاءة المستهدفة 12\",IF(C83=\"ت - ت - ك / إ مشروع\",\"الكفاءة المستهدفة 13\",IF(C83=\"خط / ن إدماج\",\"الكفاءة المستهدفة 14\",IF(C83=\"رياضيات\",\"الكفاءة المستهدفة 15\",IF(C83=\"رياضيات 2\",\"الكفاءة المستهدفة 16\",IF(C83=\"رياضيات 3\",\"الكفاءة المستهدفة 17\",IF(C83=\"رياضيات 4\",\"الكفاءة المستهدفة 18\",IF(C83=\"رياضيات 5\",\"الكفاءة المستهدفة 19\",IF(C83=\"رياضيات 6\",\"الكفاءة المستهدفة 20\",IF(C83=\"ت - علمية و تكنولوجية 1\",\"الكفاءة المستهدفة 21\",IF(C83=\"ت - علمية و تكنولوجية 2\",\"الكفاءة المستهدفة 22\",IF(C83=\"تاريخ\",\"الكفاءة المستهدفة 23\",IF(C83=\"جغرافيــــــــا\",\"الكفاءة المستهدفة 24\",IF(C83=\"ت - تشكيلية / موسيقية\",\"الكفاءة المستهدفة 25\",IF(C83=\"ت - بدنية\",\"الكفاءة المستهدفة 26\",IF(C83=\"معالجة / رياضيات\",\"الكفاءة المستهدفة 27\",IF(C83=\"معالجة / لغة عربية\",\"الكفاءة المستهدفة 28\",IF(C83=\"إتمام النصاب\",\"الكفاءة المستهدفة 29\",)))))))))))))))))))))))))))))","v":"الكفاءة المستهدفة 15"},null,"تعديل التدرج السنوي"]
[null,"11و 15",{"$f":"IF(C14=0,\"\",VLOOKUP(C14,G31:N62,5,))","v":"إتمام النصاب"},{"$f":"IF(C84=\"إتمام النصاب\",\"\",IF(C84=\"\",\"\",IF(C84=\"الصرف / الاملاء\",\"65 د\",IF(C84=\"ظواهر نحوية\",\"65 د\",IF(C84=\"تعبير شفوي\",\"30 د\",IF(C84=\"قراءة ( أداء + فهم )\",\"25 د\",IF(C84=\"قراءة ( أداء + فهم + هيكلة )\",\"60 د\",IF(C84<>\"قراءة ( أداء + فهم + هيكلة )\",\"45 د\",IF(C84<>\"قراءة ( أداء + فهم )\",\"45 د\")))))))))","v":""},{"$f":"IF(C84=\"\",\"\",IF(E14=0,\"\",E14))","v":""},{"$f":"IF(E84=\"\",\"\",IF(C84=\"\",\"\",IF(F14=0,\"\",F14)))","v":""},null,null,null,null,null,null,null,{"$f":"IF(C84=\"\",\"\",IF(N14=0,\"\",N14))","v":""},null,null,null,"الكفاءة المستهدفة 29",null,"تعديل جدول الخدمة الاسبوعي"]
[]
[null,"مساء من الساعة :",null,{"$f":"IF(C88=\"\",\"\",\"الواحــــــــــــدة\")","v":"الواحــــــــــــدة"},null,null,null,null,"الى الساعـــــــــــــــــــــــــــــــــة :",null,null,null,{"$f":"IF(C88=\"\",\"\",IF(C91=\"\",\"الثانية و النصف\",IF(C92=\"\",\"الثالثة و النصف\",IF(C92<>\"\",\"الرابعة و الرّبع\"))))","v":"الرابعة و الرّبع"},null,null,null,null,null,null,"زوروا صفحتنا على الفيس بوك"]
[null,null,null,null,null,null,null,null,null,null,null,null,null,null,null,null,null,null,null,"https://www.facebook.com/pages/%D8%AD%D9%82%D9%8A%D8%A8%D8%A9-%D8%A3%D8%B3%D8%AA%D8%A7%D8%B0-%D8%A7%D9%84%D8%AA%D9%91%D8%B9%D9%84%D9%8A%D9%85-%D8%A7%D9%84%D8%A7%D8%A8%D8%AA%D8%AF%D8%A7%D8%A6%D9%8A-/306390439522712"]
[null,13,{"$f":"IF(C18=0,\"\",VLOOKUP(C18,G31:N62,5,))","v":"تربية إسلامية"},{"$f":"IF(C88=\"إتمام النصاب\",\"\",IF(C88=\"\",\"\",IF(C88=\"الصرف / الاملاء\",\"65 د\",IF(C88=\"ظواهر نحوية\",\"65 د\",IF(C88=\"تعبير شفوي\",\"30 د\",IF(C88=\"قراءة ( أداء + فهم )\",\"25 د\",IF(C88=\"قراءة ( أداء + فهم + هيكلة )\",\"60 د\",IF(C88<>\"قراءة ( أداء + فهم + هيكلة )\",\"45 د\",IF(C88<>\"قراءة ( أداء + فهم )\",\"45 د\")))))))))","v":"45 د"},{"$f":"IF(C88=\"\",\"\",IF(E18=0,\"\",E18))","v":""},{"$f":"IF(E88=\"\",\"\",IF(C88=\"\",\"\",IF(F18=0,\"\",F18)))","v":""},null,null,null,null,null,null,null,{"$f":"IF(C88=\"\",\"\",IF(N18=0,\"\",N18))","v":""},null,null,null,{"$f":"IF(C88=\"ت -إسلامية ح 1\",\"الكفاءة المستهدفة 1\",IF(C88=\"ت - إسلامية ح 2\",\"الكفاءة المستهدفة 2\",IF(C88=\"ت - مدنية\",\"الكفاءة المستهدفة 3\",IF(C88=\"قراءة ( أداء + فهم + هيكلة )\",\"الكفاءة المستهدفة 4\",IF(C88=\"ت - شفوي\",\"الكفاءة المستهدفة 5\",IF(C88=\"قراءة ( أداء + فهم )\",\"الكفاءة المستهدفة 6\",IF(C88=\"ظواهر نحوية\",\"الكفاءة المستهدفة 7\",IF(C88=\"قراءة ( أداء  )\",\"الكفاءة المستهدفة 8\",IF(C88=\"الصرف / الاملاء\",\"الكفاءة المستهدفة 9\",IF(C88=\"مطالعة\",\"الكفاءة المستهدفة 10\",IF(C88=\"محفوظات\",\"الكفاءة المستهدفة 11\",IF(C88=\"ت - كتابي\",\"الكفاءة المستهدفة 12\",IF(C88=\"ت - ت - ك / إ مشروع\",\"الكفاءة المستهدفة 13\",IF(C88=\"خط / ن إدماج\",\"الكفاءة المستهدفة 14\",IF(C88=\"رياضيات\",\"الكفاءة المستهدفة 15\",IF(C88=\"رياضيات 2\",\"الكفاءة المستهدفة 16\",IF(C88=\"رياضيات 3\",\"الكفاءة المستهدفة 17\",IF(C88=\"رياضيات 4\",\"الكفاءة المستهدفة 18\",IF(C88=\"رياضيات 5\",\"الكفاءة المستهدفة 19\",IF(C88=\"رياضيات 6\",\"الكفاءة المستهدفة 20\",IF(C88=\"ت - علمية و تكنولوجية 1\",\"الكفاءة المستهدفة 21\",IF(C88=\"ت - علمية و تكنولوجية 2\",\"الكفاءة المستهدفة 22\",IF(C88=\"تاريخ\",\"الكفاءة المستهدفة 23\",IF(C88=\"جغرافيــــــــا\",\"الكفاءة المستهدفة 24\",IF(C88=\"ت - تشكيلية / موسيقية\",\"الكفاءة المستهدفة 25\",IF(C88=\"ت - بدنية\",\"الكفاءة المستهدفة 26\",IF(C88=\"معالجة / رياضيات\",\"الكفاءة المستهدفة 27\",IF(C88=\"معالجة / لغة عربية\",\"الكفاءة المستهدفة 28\",IF(C88=\"إتمام النصاب\",\"الكفاءة المستهدفة 29\",)))))))))))))))))))))))))))))","v":0},null,"تحويل التاريخ الميلادي الى هجري"]
[null,"14و 30",{"$f":"IF(C19=0,\"\",VLOOKUP(C19,G31:N62,5,))","v":"ت - علمية و تكنولوجية"},{"$f":"IF(C89=\"إتمام النصاب\",\"\",IF(C89=\"\",\"\",IF(C89=\"الصرف / الاملاء\",\"65 د\",IF(C89=\"ظواهر نحوية\",\"65 د\",IF(C89=\"تعبير شفوي\",\"30 د\",IF(C89=\"قراءة ( أداء + فهم )\",\"25 د\",IF(C89=\"قراءة ( أداء + فهم + هيكلة )\",\"60 د\",IF(C89<>\"قراءة ( أداء + فهم + هيكلة )\",\"45 د\",IF(C89<>\"قراءة ( أداء + فهم )\",\"45 د\")))))))))","v":"45 د"},{"$f":"IF(C89=\"\",\"\",IF(E19=0,\"\",E19))","v":""},{"$f":"IF(E89=\"\",\"\",IF(C89=\"\",\"\",IF(F19=0,\"\",F19)))","v":""},null,null,null,null,null,null,null,{"$f":"IF(C89=\"\",\"\",IF(N19=0,\"\",N19))","v":""},null,null,null,0]
[null,{"$f":"IF(C91=\"\",\"\",\"الاستــــــــــــــــــــــــــــــــــــــــــــــــــــــــــــــــــــــــــــراحــــــــــــــــــــــــــــــــــــــــــــــــة\")","v":"الاستــــــــــــــــــــــــــــــــــــــــــــــــــــــــــــــــــــــــــــراحــــــــــــــــــــــــــــــــــــــــــــــــة"},null,null,null,null,null,null,null,null,null,null,null,null,null,null,null,null,{"$f":"TODAY()","v":"2015-01-17"},null,null,{"$f":"S90","v":"2015-01-17"}]
[null,{"$f":"IF(C91=\"\",\"\",\"14و45\")","v":"14و45"},{"$f":"IF(C21=0,\"\",VLOOKUP(C21,G31:N62,5,))","v":"جغرافيــــــــا"},{"$f":"IF(C91=\"إتمام النصاب\",\"\",IF(C91=\"\",\"\",IF(C91=\"الصرف / الاملاء\",\"65 د\",IF(C91=\"ظواهر نحوية\",\"65 د\",IF(C91=\"تعبير شفوي\",\"30 د\",IF(C91=\"قراءة ( أداء + فهم )\",\"25 د\",IF(C91=\"قراءة ( أداء + فهم + هيكلة )\",\"60 د\",IF(C91<>\"قراءة ( أداء + فهم + هيكلة )\",\"45 د\",IF(C91<>\"قراءة ( أداء + فهم )\",\"45 د\")))))))))","v":"45 د"},{"$f":"IF(C91=\"\",\"\",IF(E21=0,\"\",E21))","v":""},{"$f":"IF(E91=\"\",\"\",IF(C91=\"\",\"\",IF(F21=0,\"\",F21)))","v":""},null,null,null,null,null,null,null,{"$f":"IF(C91=\"\",\"\",IF(N21=0,\"\",N21))","v":""},null,null,null,{"$f":"IF(C91=\"ت -إسلامية ح 1\",\"الكفاءة المستهدفة 1\",IF(C91=\"ت - إسلامية ح 2\",\"الكفاءة المستهدفة 2\",IF(C91=\"ت - مدنية\",\"الكفاءة المستهدفة 3\",IF(C91=\"قراءة ( أداء + فهم + هيكلة )\",\"الكفاءة المستهدفة 4\",IF(C91=\"ت - شفوي\",\"الكفاءة المستهدفة 5\",IF(C91=\"قراءة ( أداء + فهم )\",\"الكفاءة المستهدفة 6\",IF(C91=\"ظواهر نحوية\",\"الكفاءة المستهدفة 7\",IF(C91=\"قراءة ( أداء  )\",\"الكفاءة المستهدفة 8\",IF(C91=\"الصرف / الاملاء\",\"الكفاءة المستهدفة 9\",IF(C91=\"مطالعة\",\"الكفاءة المستهدفة 10\",IF(C91=\"محفوظات\",\"الكفاءة المستهدفة 11\",IF(C91=\"ت - كتابي\",\"الكفاءة المستهدفة 12\",IF(C91=\"ت - ت - ك / إ مشروع\",\"الكفاءة المستهدفة 13\",IF(C91=\"خط / ن إدماج\",\"الكفاءة المستهدفة 14\",IF(C91=\"رياضيات\",\"الكفاءة المستهدفة 15\",IF(C91=\"رياضيات 2\",\"الكفاءة المستهدفة 16\",IF(C91=\"رياضيات 3\",\"الكفاءة المستهدفة 17\",IF(C91=\"رياضيات 4\",\"الكفاءة المستهدفة 18\",IF(C91=\"رياضيات 5\",\"الكفاءة المستهدفة 19\",IF(C91=\"رياضيات 6\",\"الكفاءة المستهدفة 20\",IF(C91=\"ت - علمية و تكنولوجية 1\",\"الكفاءة المستهدفة 21\",IF(C91=\"ت - علمية و تكنولوجية 2\",\"الكفاءة المستهدفة 22\",IF(C91=\"تاريخ\",\"الكفاءة المستهدفة 23\",IF(C91=\"جغرافيــــــــا\",\"الكفاءة المستهدفة 24\",IF(C91=\"ت - تشكيلية / موسيقية\",\"الكفاءة المستهدفة 25\",IF(C91=\"ت - بدنية\",\"الكفاءة المستهدفة 26\",IF(C91=\"معالجة / رياضيات\",\"الكفاءة المستهدفة 27\",IF(C91=\"معالجة / لغة عربية\",\"الكفاءة المستهدفة 28\",IF(C91=\"إتمام النصاب\",\"الكفاءة المستهدفة 29\",)))))))))))))))))))))))))))))","v":"الكفاءة المستهدفة 24"}]
[null,{"$f":"IF(C92=\"\",\"\",\"16و15\")","v":"16و15"},{"$f":"IF(C22=0,\"\",VLOOKUP(C22,G31:N62,5,))","v":"تربية  بدنية"},{"$f":"IF(C92=\"إتمام النصاب\",\"\",IF(C92=\"\",\"\",IF(C92=\"الصرف / الاملاء\",\"65 د\",IF(C92=\"ظواهر نحوية\",\"65 د\",IF(C92=\"تعبير شفوي\",\"30 د\",IF(C92=\"قراءة ( أداء + فهم )\",\"25 د\",IF(C92=\"قراءة ( أداء + فهم + هيكلة )\",\"60 د\",IF(C92<>\"قراءة ( أداء + فهم + هيكلة )\",\"45 د\",IF(C92<>\"قراءة ( أداء + فهم )\",\"45 د\")))))))))","v":"45 د"},{"$f":"IF(C92=\"\",\"\",IF(E22=0,\"\",E22))","v":""},{"$f":"IF(E92=\"\",\"\",IF(C92=\"\",\"\",IF(F22=0,\"\",F22)))","v":""},null,null,null,null,null,null,null,{"$f":"IF(C92=\"\",\"\",IF(N22=0,\"\",N22))","v":""},null,null,null,0]
[null,"الملاحظـــــــــــــــــات :",null,null,".............................................................................................................................................................................................."]
[]
[]
[]
[]
[]
[]
[]
[]
[null,null,null,null,null,null,null,null,null,null,null,null,null,null,null,1,null,null,"جـــــــــانفي",2013,"محـــــــــــــــــرم",1433,1]
[null,null,null,null,null,null,null,null,null,null,null,null,null,null,null,2,null,null,"فيفــــــــــــري",2014,"صفــــــــــــــــــــر",1434,2]
[null,null,null,null,null,null,null,null,null,null,null,null,null,null,null,3,null,null,"مـــــــــــــارس",2015,"ربيـــــــــع الأول",1435,3]
[null,null,null,null,null,null,null,null,null,null,null,null,null,null,null,4,null,null,"أفريـــــــــــــــل",2016,"ربيـــــــــع الثاني",1436,4]
[null,null,null,null,null,null,null,null,null,null,null,null,null,null,null,5,null,null,"مــــــــــــــــــاي",2017,"جمادى الاولـــى",1437,5]
[null,null,null,null,null,null,null,null,null,null,null,null,null,null,null,6,null,null,"جــــــــــــــــوان",2018,"جمــادى الثانية",1438,6]
[null,null,null,null,null,null,null,null,null,null,null,null,null,null,null,7,null,null,"جويلــــــــــــية",2019,"رجــــــــــــــــــب",1439,7]
[null,null,null,null,null,null,null,null,null,null,null,null,null,null,null,8,null,null,"أوت",2020,"شعـــــــــــــــبان",1440,8]
[null,null,null,null,null,null,null,null,null,null,null,null,null,null,null,9,null,null,"سبتمبـــــــــــــر",2021,"رمضــــــــــــــــان",1441,9]
[null,null,null,null,null,null,null,null,null,null,null,null,null,null,null,10,null,null,"أكتوبــــــــــــــر",2022,"شـــــــــــــــــوال",1442,10]
[null,null,null,null,null,null,null,null,null,null,null,null,null,null,null,11,null,null,"نوفمبـــــــــــــر",2023,"ذو القعـــــــــدة",1443,11]
[null,null,null,null,null,null,null,null,null,null,null,null,null,null,null,12,null,null,"ديسمبــــــــــــر",2024,"ذو الحجــــــــــة",1444,12]
[null,null,null,null,null,null,null,null,null,null,null,null,null,null,null,13,null,null,null,null,null,null,13]
[null,null,null,null,null,null,null,null,null,null,null,null,null,null,null,14,null,null,null,null,null,null,14]
[null,null,null,null,null,null,null,null,null,null,null,null,null,null,null,15,null,null,null,null,null,null,15]
[null,null,null,null,null,null,null,null,null,null,null,null,null,null,null,16,null,null,null,null,null,null,16]
[null,null,null,null,null,null,null,null,null,null,null,null,null,null,null,17,null,null,null,null,null,null,17]
[null,null,null,null,null,null,null,null,null,null,null,null,null,null,null,18,null,null,null,null,null,null,18]
[null,null,null,null,null,null,null,null,null,null,null,null,null,null,null,19,null,null,null,null,null,null,19]
[null,null,null,null,null,null,null,null,null,null,null,null,null,null,null,20,null,null,null,null,null,null,20]
[null,null,null,null,null,null,null,null,null,null,null,null,null,null,null,21,null,null,null,null,null,null,21]
[null,null,null,null,null,null,null,null,null,null,null,null,null,null,null,22,null,null,null,null,null,null,22]
[null,null,null,null,null,null,null,null,null,null,null,null,null,null,null,23,null,null,null,null,null,null,23]
[null,null,null,null,null,null,null,null,null,null,null,null,null,null,null,24,null,null,null,null,null,null,24]
[null,null,null,null,null,null,null,null,null,null,null,null,null,null,null,25,null,null,null,null,null,null,25]
[null,null,null,null,null,null,null,null,null,null,null,null,null,null,null,26,null,null,null,null,null,null,26]
[null,null,null,null,null,null,null,null,null,null,null,null,null,null,null,27,null,null,null,null,null,null,27]
[null,null,null,null,null,null,null,null,null,null,null,null,null,null,null,28,null,null,null,null,null,null,28]
[null,null,null,null,null,null,null,null,null,null,null,null,null,null,null,29,null,null,null,null,null,null,29]
[null,null,null,null,null,null,null,null,null,null,null,null,null,null,null,30,null,null,null,null,null,null,30]
[null,null,null,null,null,null,null,null,null,null,null,null,null,null,null,31,null,null,null,null,null,null,31]
[null,null,null,null,null,null,null,null,null,null,null,null,null,null,null,null,null,null,null,null,null,null,32]
[null,null,null,null,null,null,null,null,null,null,null,null,null,null,null,null,null,null,null,null,null,null,33]
[null,null,null,null,null,null,null,null,null,null,null,null,null,null,null,null,null,null,null,null,null,null,34]
[null,null,null,null,null,null,null,null,null,null,null,null,null,null,null,null,null,null,null,null,null,null,35]
[null,null,null,null,null,null,null,null,null,null,null,null,null,null,null,null,null,null,null,null,null,null,36]

{"sheet":"جدول الخدمة الاسبوعـــي","index":2,"n_rows":45,"n_cols":13,"rows_kept":45,"cut":false,"hidden":false,"merged":[[0,5,1,10],[0,1,1,3]]}
[null,"العودة الى الصفحة الرئيسية",null,null,null,"جــــــــــــــــــــــــدول الخدمة الاسبوعي"]
[]
[]
[null,"الأحـــــــــــــــد","قراءة ( أداء + فهم + هيكلة )","ت - شفوي",null,"رياضيات","إتمام النصاب",null,"ت -إسلامية ح 1","ت - علمية و تكنولوجية 1",null,"جغرافيــــــــا","ت - بدنية"]
[null,"الأثنيـــــــــــــن","قراءة ( أداء + فهم )","ظواهر نحوية",null,"رياضيات 2","تاريخ",null,"ت - علمية و تكنولوجية 2","ت - مدنية",null,"ت - تشكيلية / موسيقية","معالجة / رياضيات"]
[null,"الثلاثــــــــــــاء","قراءة ( أداء  )","الصرف / الاملاء",null,"رياضيات 3","إتمام النصاب",null,"الدّعـــــــــــــــــم","الدّعـــــــــــــــــم"]
[null,"الأربعــــــــــــاء","إتمام النصاب","إتمام النصاب",null,"ت - إسلامية ح 2","رياضيات 4",null,"محفوظات","مطالعة",null,"ت - كتابي","معالجة / لغة عربية"]
[null,"الخمــــــــــــيس","نشاطات إدماجية","ت - ت - ك / إ مشروع",null,"رياضيات 5","رياضيات 6",null,"إتمام النصاب","إتمام النصاب",null,"إتمام النصاب"]
[]
[]
[]
[]
[]
[null,null,"قراءة ( أداء + فهم + هيكلة )",1]
[null,null,"قراءة ( أداء + فهم )",2]
[null,null,"قراءة ( أداء  )",3]
[null,null,"ت - شفوي",4]
[null,null,"ت - كتابي",5]
[null,null,"ت - ت - ك / إ مشروع",6]
[null,null,"ظواهر نحوية",7]
[null,null,"الصرف / الاملاء",8]
[null,null,"محفوظات",9]
[null,null,"مطالعة",10]
[null,null,"نشاطات إدماجية",11]
[null,null,"إتمام النصاب",12]
[null,null,"رياضيات",13]
[null,null,"رياضيات 2",14]
[null,null,"رياضيات 3",15]
[null,null,"رياضيات 4",16]
[null,null,"رياضيات 5",17]
[null,null,"رياضيات 6",18]
[null,null,"ت -إسلامية ح 1",19]
[null,null,"ت - إسلامية ح 2",20]
[null,null,"ت - علمية و تكنولوجية 1",21]
[null,null,"ت - علمية و تكنولوجية 2",22]
[null,null,"ت - مدنية",23]
[null,null,"تاريخ",24]
[null,null,"جغرافيــــــــا",25]
[null,null,"ت - تشكيلية / موسيقية",26]
[null,null,"ت - بدنية",27]
[null,null,"نشاطات لا صفية",28]
[null,null,"الدّعـــــــــــــــــم",29]
[null,null,"الفريق التربوي",30]
[null,null,"معالجة / رياضيات",31]
[null,null,"معالجة / لغة عربية"]

{"sheet":"رزنامة","index":3,"n_rows":0,"n_cols":0,"rows_kept":0,"cut":false,"hidden":false,"merged":[]}